fUST/lending_fUST_20240410
["ID","MTS","AMOUNT","RATE_DAILY","PERIOD"]
[322059780,1712735440453,-500.0,0.00024648,2]
[322059781,1712735440462,-500.0,0.00024649,2]
[322059783,1712735440472,-500.0,0.00024657,2]
[322059785,1712735440482,-500.0,0.00024738,2]
[322059787,1712735440491,-500.0,0.00024738,2]
[322059789,1712735440500,-1371.92,0.00024738,2]
[322059792,1712735440510,-1307.04885161,0.00024786,2]
[322059793,1712735440520,-587.0,0.00024861,2]
[322059794,1712735440529,-19966.53882765,0.0002488,2]
[322059795,1712735440539,-1232.25,0.00024922,2]
[322059796,1712735440548,-687.65,0.00024922,2]
[322059797,1712735440557,-500.0,0.00024922,2]
[322059798,1712735440567,-500.0,0.00024922,2]
[322059799,1712735440577,-1419.92,0.00024922,2]
[322059800,1712735440587,-653.71,0.00024922,2]
[322059801,1712735440597,-500.0,0.00024922,2]
[322059802,1712735440607,-500.0,0.00024923,2]
[322059803,1712735440616,-878.83972763,0.00024925,2]
[322059804,1712735440626,-500.0,0.00024931,2]
[322059805,1712735440636,-156.6143744,0.00024984,2]
[322059806,1712735440645,-220.22760662,0.00025,2]
[322059807,1712735440656,-500.0,0.00025012,2]
[322059808,1712735440665,-500.0,0.00025012,2]
[322059809,1712735440676,-1371.92,0.00025012,2]
[322059810,1712735440687,-1232.25,0.00025196,2]
[322059811,1712735440696,-687.65,0.00025196,2]
[322059812,1712735440706,-500.0,0.00025196,2]
[322059813,1712735440716,-500.0,0.00025196,2]
[322059814,1712735440726,-1419.92,0.00025196,2]
[322059815,1712735440735,-653.71,0.00025196,2]
[322059816,1712735440744,-500.0,0.00025196,2]
[322059817,1712735440754,-500.0,0.00025197,2]
[322059818,1712735440763,-500.0,0.00025197,2]
[322059819,1712735440773,-500.0,0.00025197,2]
[322059820,1712735440782,-500.0,0.00025205,2]
[322059821,1712735440792,-500.0,0.00025286,2]
[322059822,1712735440801,-500.0,0.00025286,2]
[322059823,1712735440811,-1371.92,0.00025286,2]
[322059824,1712735440823,-587.0,0.00025423,2]
[322059825,1712735440832,-621.81632124,0.00025447,2]
[322059826,1712735440842,-1232.25,0.0002547,2]
[322059827,1712735440852,-687.65,0.0002547,2]
[322059828,1712735440861,-500.0,0.0002547,2]
[322059829,1712735440870,-500.0,0.0002547,2]
[322059830,1712735440881,-1419.92,0.0002547,2]
[322059831,1712735440890,-653.71,0.0002547,2]
[322059832,1712735440900,-500.0,0.0002547,2]
[322059833,1712735440910,-570.05427582,0.00025471,2]
[322059834,1712735440919,-500.0,0.00025479,2]
[322059835,1712735440929,-2299.9869379,0.000255,4]
[322059836,1712735440940,-500.0,0.00025559,2]
[322059837,1712735440950,-500.0,0.00025559,2]
[322059838,1712735440959,-1371.92,0.00025559,2]
[322059839,1712735440968,-1232.25,0.00025744,2]
[322059840,1712735440978,-687.65,0.00025744,2]
[322059841,1712735440987,-500.0,0.00025744,2]
[322059842,1712735440996,-586.925704,0.00025744,2]
[322059843,1712735441005,-1419.92,0.00025744,2]
[322059844,1712735441014,-653.71,0.00025744,2]
[322059845,1712735441024,-500.0,0.00025744,2]
[322059846,1712735441033,-500.0,0.00025753,2]
[322059847,1712735441042,-500.0,0.00025833,2]
[322059848,1712735441051,-500.0,0.00025833,2]
[322059849,1712735441061,-1371.92,0.00025833,2]
[322059850,1712735441070,-1232.25,0.00026018,2]
[322059851,1712735441079,-687.65,0.00026018,2]
[322059852,1712735441089,-500.0,0.00026018,2]
[322059853,1712735441099,-1419.92,0.00026018,2]
[322059854,1712735441108,-653.71,0.00026018,2]
[322059855,1712735441117,-500.0,0.00026018,2]
[322059856,1712735441126,-500.0,0.00026027,2]
[322059857,1712735441136,-1307.04885161,0.00026093,2]
[322059858,1712735441145,-500.0,0.00026107,2]
[322059859,1712735441155,-500.0,0.00026107,2]
[322059860,1712735441165,-1371.92,0.00026107,2]
[322059861,1712735441175,-156.53326933,0.00026174,2]
[322059862,1712735441186,-1232.25,0.00026292,2]
[322059863,1712735441195,-687.65,0.00026292,2]
[322059864,1712735441204,-153.34814189,0.00026292,2]
[322059865,1712735441214,-1419.92,0.00026292,2]
[322059866,1712735441223,-1280.782822,0.00026292,2]
[322059867,1712735441233,-1280.782822,0.00026292,2]
[322059868,1712735441243,-653.71,0.00026292,2]
[322059869,1712735441252,-500.0,0.00026292,2]
[322059870,1712735441261,-500.0,0.00026301,2]
[322059871,1712735441271,-500.0,0.00026381,2]
[322059872,1712735441280,-500.0,0.00026381,2]
[322059873,1712735441290,-1371.92,0.00026381,2]
[322059874,1712735441299,-1232.25,0.00026566,2]
[322059875,1712735441309,-687.65,0.00026566,2]
[322059876,1712735441318,-1419.92,0.00026566,2]
[322059877,1712735441328,-653.71,0.00026566,2]
[322059878,1712735441337,-174.63656614,0.00026566,2]
[322059879,1712735441346,-151.0,0.00026568,2]
[322059880,1712735441356,-151.0,0.00026568,2]
[322059881,1712735441365,-151.0,0.00026568,2]
[322059882,1712735441374,-151.0,0.00026568,2]
[322059883,1712735441384,-500.0,0.00026575,2]
[322059884,1712735441393,-500.0,0.00026655,2]
[322059885,1712735441403,-500.0,0.00026655,2]
[322059886,1712735441412,-1371.92,0.00026655,2]
[322059887,1712735441422,-620.09081606,0.00026719,2]
[322059888,1712735441432,-1232.25,0.0002684,2]
[322059889,1712735441443,-687.65,0.0002684,2]
[322059890,1712735441452,-1419.92,0.0002684,2]
[322059891,1712735441462,-653.71,0.0002684,2]
[322059892,1712735441471,-500.0,0.00026849,2]
[322059893,1712735441481,-878.83972763,0.0002692,3]
[322059894,1712735441491,-500.0,0.00026929,2]
[322059895,1712735441500,-161.64,0.00026929,2]
[322059896,1712735441510,-1371.92,0.00026929,2]
[322059897,1712735441519,-202.7418102,0.00026932,2]
[322059898,1712735441528,-306.0,0.00026932,2]
[322059899,1712735441538,-153.0,0.00026932,2]
[322059900,1712735441547,-153.0,0.00026932,2]
[322059901,1712735441557,-153.0,0.00026932,2]
[322059902,1712735441566,-153.0,0.00026932,2]
[322059903,1712735441576,-153.0,0.00026932,2]
[322059904,1712735441586,-153.0,0.00026932,2]
[322059905,1712735441596,-153.0,0.00026932,2]
[322059906,1712735441606,-153.0,0.00026932,2]
[322059907,1712735441615,-153.0,0.00026932,2]
[322059908,1712735441625,-151.0,0.00026932,2]
[322059909,1712735441636,-156.6143744,0.00026947,2]
[322059910,1712735441645,-453.3273481,0.0002696,2]
[322059911,1712735441654,-154.9690062,0.00027,2]
[322059912,1712735441664,-613.0,0.00027043,2]
[322059913,1712735441674,-1232.25,0.00027114,2]
[322059914,1712735441685,-687.65,0.00027114,2]
[322059915,1712735441694,-1419.92,0.00027114,2]
[322059916,1712735441703,-653.71,0.00027114,2]
[322059917,1712735441713,-191.93,0.00027123,2]
[322059918,1712735441723,-500.0,0.00027203,2]
[322059919,1712735441732,-1371.92,0.00027203,2]
[322059920,1712735441742,-1232.25,0.00027388,2]
[322059921,1712735441751,-687.65,0.00027388,2]
[322059922,1712735441761,-1419.92,0.00027388,2]
[322059923,1712735441771,-653.71,0.00027388,2]
[322059924,1712735441780,-314.36819107,0.00027393,2]
[322059925,1712735441790,-265.76611257,0.00027396,7]
[322059926,1712735441799,-500.0,0.00027397,2]
[322059927,1712735441808,-500.0,0.00027397,2]
[322059928,1712735441818,-500.0,0.00027397,2]
[322059929,1712735441827,-500.0,0.00027397,2]
[322059930,1712735441837,-500.0,0.00027397,2]
[322059931,1712735441847,-500.0,0.00027397,2]
[322059932,1712735441857,-500.0,0.00027397,2]
[322059933,1712735441866,-500.0,0.00027397,2]
[322059934,1712735441876,-1280.782822,0.00027397,2]
[322059935,1712735441886,-1280.782822,0.00027397,2]
[322059936,1712735441991,-500.0,0.00027397,2]
[322059937,1712735442001,-500.0,0.00027397,2]
[322059938,1712735442011,-500.0,0.00027397,2]
[322059939,1712735442020,-500.0,0.00027397,2]
[322059940,1712735442030,-500.0,0.00027397,2]
[322059941,1712735442039,-500.0,0.00027397,2]
[322059942,1712735442048,-500.0,0.00027397,2]
[322059943,1712735442057,-500.0,0.00027397,2]
[322059944,1712735442066,-500.0,0.00027397,2]
[322059945,1712735442075,-500.0,0.00027397,2]
[322059946,1712735442084,-401.10474086,0.00027397,2]
[322059947,1712735442094,-500.0,0.00027397,2]
[322059948,1712735442103,-500.0,0.00027397,2]
[322059949,1712735442113,-500.0,0.00027397,2]
[322059950,1712735442122,-500.0,0.00027397,2]
[322059951,1712735442131,-500.0,0.00027397,2]
[322059952,1712735442139,-500.0,0.00027397,2]
[322059953,1712735442149,-500.0,0.00027397,2]
[322059954,1712735442158,-500.0,0.00027397,2]
[322059955,1712735442167,-500.0,0.00027397,2]
[322059956,1712735442176,-500.0,0.00027397,2]
[322059957,1712735442187,-500.0,0.00027397,2]
[322059958,1712735442197,-500.0,0.00027397,2]
[322059959,1712735442206,-500.0,0.00027397,2]
[322059960,1712735442215,-500.0,0.00027397,2]
[322059961,1712735442225,-273.460084,0.00027397,2]
[322059962,1712735442234,-211.57051,0.00027397,2]
[322059963,1712735442243,-395.426164,0.00027397,2]
[322059964,1712735442252,-524.16281,0.00027397,2]
[322059965,1712735442261,-166.666666,0.00027397,2]
[322059966,1712735442270,-189.750424,0.00027397,2]
[322059967,1712735442279,-754.21396715,0.000274,2]
[322059968,1712735442288,-151.0,0.000274,2]
[322059969,1712735442297,-151.0,0.000274,2]
[322059970,1712735442306,-242.992108,0.000274,2]
[322059971,1712735442315,-1307.04885161,0.000274,2]
[322059972,1712735442324,-500.0,0.00027477,2]
[322059973,1712735442334,-155.14114244,0.00027498,2]
[322059974,1712735442343,-155.38786881,0.00027498,2]
[322059975,1712735442352,-155.30706819,0.00027498,2]
[322059976,1712735442362,-184.48906222,0.00027498,2]
[322059977,1712735442370,-2782.77953969,0.00027498,2]
[322059978,1712735442379,-155.52785764,0.00027498,2]
[322059979,1712735442389,-308.20971403,0.00027498,2]
[322059980,1712735442398,-188.04976656,0.00027498,2]
[322059981,1712735442407,-151.0,0.00027498,2]
[322059982,1712735442416,-242.74204017,0.00027499,2]
[322059983,1712735442425,-43171.49859057,0.000275,2]
[322059984,1712735442433,-151.0,0.000275,2]
[322059985,1712735442444,-151.0,0.000275,2]
[322059986,1712735442454,-151.0,0.000275,2]
[322059987,1712735442463,-151.0,0.000275,2]
[322059988,1712735442472,-151.0,0.000275,2]
[322059989,1712735442481,-151.0,0.000275,2]
[322059990,1712735442491,-1280.782822,0.000275,2]
[322059991,1712735442501,-1280.782822,0.000275,2]
[322059992,1712735442510,-954.4159432,0.00027662,2]
[322059993,1712735442681,228.095998,0.00020202,2]
[322060600,1712735449512,-207.29860552,0.00021007,2]
[322060601,1712735449521,-154.9690062,0.00021011,2]
[322060602,1712735449531,-2456.02377664,0.00021011,2]
[322060603,1712735449541,-215.70131407,0.00021011,2]
[322060605,1712735449552,-500.0,0.00024648,2]
[322060607,1712735449561,-500.0,0.00024922,2]
[322060608,1712735449570,-500.0,0.00025196,2]
[322060610,1712735449580,-500.0,0.0002547,2]
[322060611,1712735449590,-242.17167049,0.00025744,2]
[322060613,1712735449599,-1371.92,0.00027477,2]
[322060615,1712735449609,-277.8340568,0.00027662,2]
[322060616,1712735449619,-687.65,0.00027662,2]
[322060618,1712735449628,-1419.92,0.00027662,2]
[322060619,1712735449637,-653.71,0.00027662,2]
[322060620,1712735449647,-630.73676268,0.000277,2]
[322060621,1712735449656,-153.0,0.00027712,2]
[322060622,1712735449666,-153.0,0.00027712,2]
[322060623,1712735449676,-153.0,0.00027712,2]
[322060624,1712735449687,-620.02452281,0.00027742,2]
[322060625,1712735449697,-500.0,0.00027751,2]
[322060626,1712735449707,-1371.92,0.00027751,2]
[322060627,1712735449716,-1232.25,0.00027936,2]
[322060628,1712735449726,-687.65,0.00027936,2]
[322060629,1712735449735,-1419.92,0.00027936,2]
[322060630,1712735449744,-653.71,0.00027936,2]
[322060631,1712735449754,-155.18570602,0.0002794,2]
[322060632,1712735449764,-823.0,0.00027966,2]
[322060633,1712735449774,-500.0,0.00028,2]
[322060634,1712735449783,-353.63,0.00028025,2]
[322060635,1712735449793,-1371.92,0.00028025,2]
[322060636,1712735449802,-166.666666,0.00028038,2]
[322060637,1712735449812,-1232.25,0.0002821,2]
[322060638,1712735449821,-687.65,0.0002821,2]
[322060639,1712735449830,-1419.92,0.0002821,2]
[322060640,1712735449840,-653.71,0.0002821,2]
[322060641,1712735449849,-473.2366857,0.00028214,2]
[322060642,1712735449859,-155.3597361,0.00028215,2]
[322060643,1712735449868,-1371.92,0.00028299,2]
[322060644,1712735449877,-1232.2523361,0.00028484,2]
[322060645,1712735449886,-687.67450367,0.00028484,2]
[322060646,1712735449895,-1420.0193969,0.00028484,2]
[322060647,1712735449904,-653.83632814,0.00028484,2]
[322060649,1712735449913,-155.77365779,0.00028488,2]
[322060651,1712735449922,-1372.15831389,0.00028573,2]
[322060653,1712735449931,-166.666666,0.00028679,2]
[322060654,1712735449940,-305.92758867,0.00028768,2]
[322060656,1712735449949,-187.10036255,0.00028769,2]
[322060658,1712735449958,-8499.44206072,0.0002877,2]
[322060659,1712735449967,-156.6143744,0.0002891,2]
[322060661,1712735449976,-878.83972763,0.00028915,4]
[322060663,1712735449986,-500.0,0.00029,2]
[322060664,1712735449995,-166.666666,0.00029321,2]
[322060665,1712735450004,-166.666666,0.00029962,2]
[322060667,1712735450012,-151.0,0.00029962,2]
[322060668,1712735450022,-154.95351395,0.0003,4]
[322060669,1712735450030,-500.0,0.0003,2]
[322060670,1712735450039,-300.0,0.0003,30]
[322060671,1712735450048,-154.9690062,0.0003,4]
[322060672,1712735450058,-181.0,0.0003,2]
[322060673,1712735450067,-267.369852,0.0003013,2]
[322060674,1712735450077,-1280.782822,0.0003013,2]
[322060675,1712735450087,-1280.782822,0.0003013,2]
[322060676,1712735450096,-151.0,0.00030257,2]
[322060677,1712735450105,-151.0,0.00030257,2]
[322060678,1712735450115,-166.666666,0.00030603,2]
[322060679,1712735450124,-1152.0,0.00030762,2]
[322060680,1712735450134,-156.6143744,0.00030873,2]
[322060681,1712735450143,-878.83972763,0.0003091,5]
[322060682,1712735450153,-500.0,0.00031,2]
[322060683,1712735450162,-155.53480086,0.00031499,4]
[322060684,1712735450171,-2000.0,0.000315,2]
[322060685,1712735450181,-151.0,0.0003151,2]
[322060686,1712735450190,-2000.0,0.0003151,2]
[322060687,1712735450199,-2000.0,0.0003152,2]
[322060688,1712735450208,-2000.0,0.0003153,2]
[322060689,1712735450218,-2000.0,0.0003154,2]
[322060690,1712735450227,-2000.0,0.0003155,2]
[322060691,1712735450236,-2640.679363,0.0003156,2]
[322060692,1712735450246,-616.79703878,0.00031999,4]
[322060693,1712735450255,-502.79020288,0.00032,2]
[322060694,1712735450264,-2539.53,0.00032,2]
[322060695,1712735450274,-190.82879754,0.00032,4]
[322060696,1712735450283,-156.6143744,0.00032837,2]
[322060697,1712735450292,-745.37755848,0.00032891,4]
[322060698,1712735450301,-878.83972763,0.00032905,6]
[322060699,1712735450310,-1500.0,0.00033,2]
[322060700,1712735450320,-500.0,0.00033,2]
[322060701,1712735450329,-1000.0,0.00033,33]
[322060702,1712735450338,-181.0,0.00033,2]
[322060703,1712735450347,-151.0,0.00033092,2]
[322060704,1712735450357,-749.71333205,0.00033153,4]
[322060705,1712735450366,-273.460084,0.00033165,2]
[322060706,1712735450375,-211.57051,0.00033165,2]
[322060707,1712735450384,-395.426164,0.00033165,2]
[322060708,1712735450393,-524.16281,0.00033165,2]
[322060709,1712735450402,-1613.0,0.00033838,2]
[322060710,1712735450412,-2000.0,0.00034,2]
[322060711,1712735450421,-1000.0,0.00034,34]
[322060712,1712735450430,-156.48611849,0.00034,7]
[322060713,1712735450441,-464.76907436,0.00034,4]
[322060714,1712735450450,-306.7307567,0.0003411,2]
[322060715,1712735450459,-202.7924704,0.00034137,2]
[322060716,1712735450468,-259.9257713,0.00034247,2]
[322060717,1712735450476,-153.0,0.00034247,2]
[322060718,1712735450486,-153.0,0.00034247,2]
[322060719,1712735450496,-153.0,0.00034247,2]
[322060720,1712735450505,-404.539752,0.00034247,2]
[322060721,1712735450514,-153.0,0.00034247,2]
[322060722,1712735450524,-153.0,0.00034247,2]
[322060723,1712735450533,-153.0,0.00034247,2]
[322060724,1712735450543,-153.0,0.00034247,2]
[322060725,1712735450553,-153.0,0.00034247,2]
[322060726,1712735450562,-153.0,0.00034247,2]
[322060727,1712735450572,-306.0,0.00034247,2]
[322060728,1712735450581,-1707.58,0.00034249,6]
[322060729,1712735450591,-233.02119329,0.00034549,7]
[322060730,1712735450600,-1000.0,0.000348,5]
[322060731,1712735450609,-1000.0,0.000348,6]
[322060732,1712735450618,-1000.0,0.000348,7]
[322060733,1712735450628,-156.6143744,0.000348,2]
[322060734,1712735450637,-293.77904916,0.000348,2]
[322060735,1712735450647,-271.79249279,0.00034812,4]
[322060736,1712735450656,-293.77904914,0.00034816,2]
[322060737,1712735450665,-293.77904914,0.00034833,2]
[322060738,1712735450675,-293.77904914,0.00034849,2]
[322060739,1712735450687,-293.77904914,0.00034866,2]
[322060740,1712735450698,-153.038156,0.0003489,2]
[322060741,1712735450707,-800.0,0.0003489,2]
[322060742,1712735450716,-418.47743855,0.0003489,3]
[322060743,1712735450726,-155.88359555,0.00034896,4]
[322060744,1712735450735,-603.65365396,0.00034898,4]
[322060745,1712735450744,-292.18783372,0.00034898,2]
[322060746,1712735450753,-1593.80773655,0.00034898,4]
[322060747,1712735450763,-781.66926533,0.00034898,4]
[322060748,1712735450774,-156.54809607,0.00034898,4]
[322060749,1712735450783,-1986.45050956,0.00034898,4]
[322060750,1712735450793,-232.59063765,0.00034898,4]
[322060751,1712735450802,-157.2962719,0.00034898,4]
[322060752,1712735450811,-1227.53516352,0.00034898,4]
[322060753,1712735450821,-281.44850236,0.00034898,4]
[322060754,1712735450830,-155.59169332,0.00034898,4]
[322060755,1712735450839,-276.5797893,0.00034898,4]
[322060756,1712735450888,-305.41278701,0.00034898,4]
[322060757,1712735450898,-4581.51209606,0.00034898,4]
[322060758,1712735450907,-24208.99055251,0.00034898,2]
[322060759,1712735450916,-151.0,0.00034898,2]
[322060760,1712735450926,-155.21020786,0.00034898,4]
[322060761,1712735450935,-305.16308932,0.00034898,4]
[322060762,1712735450945,-151.0,0.00034898,2]
[322060763,1712735450954,-151.0,0.00034898,2]
[322060764,1712735450963,-151.0,0.00034898,2]
[322060765,1712735450973,-262.413933,0.00034898,2]
[322060766,1712735450983,-802.07030159,0.00034898,4]
[322060767,1712735450992,-1280.782822,0.00034898,2]
[322060768,1712735451002,-1280.782822,0.00034898,2]
[322060769,1712735451011,-160.27859265,0.00034899,4]
[322060770,1712735451020,-2935.09161467,0.00034899,4]
[322060771,1712735451029,-150.0,0.00034899,2]
[322060772,1712735451038,-164.66079012,0.000349,37]
[322060773,1712735451048,-954.42686467,0.000349,105]
[322060774,1712735451057,-1085.4311817,0.000349,108]
[322060775,1712735451067,-353.33652101,0.000349,114]
[322060776,1712735451076,-1000.0,0.000349,120]
[322060777,1712735451085,-190000.0,0.000349,30]
[322060778,1712735451094,-151.0,0.000349,2]
[322060779,1712735451104,-151.0,0.000349,2]
[322060780,1712735451113,-878.83972763,0.000349,7]
[322060781,1712735451122,-1280.782822,0.000349,2]
[322060782,1712735451131,-1280.782822,0.000349,2]
[322060783,1712735451141,-1280.782822,0.000349,2]
[322060784,1712735451151,-1280.782822,0.000349,2]
[322060785,1712735451160,-202.7924704,0.00034959,2]
[322060786,1712735451169,-202.5898296,0.00034959,2]
[322060787,1712735451179,-6989.70510157,0.0003498,4]
[322060788,1712735451188,-170.16434204,0.00034998,5]
[322060789,1712735451202,-216.43601473,0.00034998,4]
[322060790,1712735451211,-1919.21518065,0.00034998,4]
[322060791,1712735451220,-155.12509976,0.00034998,4]
[322060792,1712735451230,-333.28466088,0.00034998,4]
[322060793,1712735451239,-869.64772348,0.00034998,4]
[322060794,1712735451248,-3718.21894048,0.00034998,4]
[322060795,1712735451258,-874.87348728,0.00034999,14]
[322060796,1712735451267,-161.95,0.00034999,2]
[322060797,1712735451276,-161.95,0.00034999,2]
[322060798,1712735451285,-161.95,0.00034999,2]
[322060799,1712735451294,-161.95,0.00034999,2]
[322060800,1712735451303,-161.95,0.00034999,2]
[322060801,1712735451312,-161.95,0.00034999,2]
[322060802,1712735451322,-161.95,0.00034999,2]
[322060803,1712735451331,-161.95,0.00034999,2]
[322060804,1712735451340,-161.95,0.00034999,2]
[322060805,1712735451348,-161.95,0.00034999,2]
[322060806,1712735451358,-45913.34242602,0.00035,120]
[322060807,1712735451367,-154.95351395,0.00035,4]
[322060808,1712735451376,-20000.0,0.00035,7]
[322060809,1712735451385,-20000.0,0.00035,30]
[322060810,1712735451394,-1137.16,0.00035,120]
[322060811,1712735451403,-3150.53827778,0.00035,2]
[322060812,1712735451412,-1772.7449932,0.00035,4]
[322060813,1712735451422,-6857.88352877,0.00035,4]
[322060814,1712735451431,-668.97750328,0.00035,4]
[322060815,1712735451441,-596.25390228,0.00035,2]
[322060816,1712735451450,-10305.84365154,0.00035,120]
[322060817,1712735451459,-377.04523895,0.00035,120]
[322060818,1712735451469,-151.0,0.00035,2]
[322060819,1712735451478,-151.0,0.00035,2]
[322060820,1712735451487,-151.0,0.00035,2]
[322060821,1712735451497,-1280.782822,0.00035,2]
[322060822,1712735451506,-1280.782822,0.00035,2]
[322060823,1712735451515,-1280.782822,0.00035,2]
[322060824,1712735451525,-1280.782822,0.00035,2]
[322060825,1712735451534,-1280.782822,0.00035,2]
[322060826,1712735451543,-1280.782828,0.00035,2]
[322060827,1712735451553,-4891.86872177,0.00035,5]
[322060828,1712735451562,-300.0,0.00035,2]
[322060829,1712735451571,-358.88498079,0.00035,2]
[322060830,1712735451581,-5895.93470869,0.00035,30]
[322060831,1712735451592,-504.52145547,0.00035,10]
[322060832,1712735451601,-1188.12890598,0.00035048,14]
[322060833,1712735451611,-565.00376137,0.00035048,30]
[322060834,1712735451620,-8240.41173279,0.00035048,31]
[322060835,1712735451630,-506.81232075,0.00035048,30]
[322060836,1712735451639,-232.68557843,0.00035048,30]
[322060837,1712735451649,-154.95155979,0.00035048,30]
[322060838,1712735451658,-250.0,0.00035048,7]
[322060839,1712735451668,-250.0,0.00035048,28]
[322060840,1712735451677,-200.14679672,0.00035048,30]
[322060841,1712735451689,-87715.40307229,0.00035048,2]
[322060842,1712735451699,-349229.52577878,0.00035048,2]
[322060843,1712735451708,-300.0,0.00035048,2]
[322060844,1712735451718,-779.44322919,0.00035048,2]
[322060845,1712735451727,-223.95078971,0.00035048,10]
[322060846,1712735451737,-285.81068334,0.00035048,2]
[322060847,1712735451746,-18474.57878968,0.00035048,2]
[322060848,1712735451756,-4078.17187604,0.00035048,2]
[322060849,1712735451765,-314.75834125,0.00035048,2]
[322060850,1712735451774,-280.47601374,0.00035048,2]
[322060851,1712735451784,-9917.39839321,0.00035048,2]
[322060852,1712735451793,-2701.65267633,0.00035048,2]
[322060853,1712735451802,-151.64415068,0.00035048,2]
[322060854,1712735451811,-166.43299911,0.00035048,5]
[322060855,1712735451821,-27844.83189247,0.00035048,2]
[322060856,1712735451831,-201.60994149,0.00035048,2]
[322060857,1712735451841,-429.70310101,0.00035048,2]
[322060858,1712735451850,-28532.62611646,0.00035048,2]
[322060859,1712735451860,-1001.18409215,0.00035048,2]
[322060860,1712735451869,-70343.23826767,0.00035048,32]
[322060861,1712735451879,-3039496.19425529,0.00035048,60]
[322060862,1712735451903,-0.06848807,0.00035048,60]
[322060863,1712735452044,2860.53320332,0.00023,9]
[322060873,1712735632567,12872.76203606,0.0002,2]
[322060874,1712735658067,436.46261913,0.000125,2]
[322060875,1712735702298,524.8635464,0.00021001,2]
[322060879,1712735913004,228.095998,0.00020641,2]
[322060880,1712735949463,24900.0,0.00020182,2]
[322060881,1712735961077,156.60500254,0.00021001,2]
[322060882,1712735974366,16043.50232186,0.00021001,2]
[322060883,1712735975366,781.9819512,0.00021001,2]
[322060884,1712735978303,154.9690062,0.00021001,2]
[322060885,1712735985685,225.55190173,0.00021001,2]
[322060886,1712735990353,2968.69219815,0.00021001,2]
[322060887,1712735991604,887.0189653,0.00021001,2]
[322060888,1712735994501,5567.94409063,0.00021001,2]
[322060889,1712735999361,562.9343756,0.00021001,2]
[322060890,1712736000568,1307.84743807,0.00021001,2]
[322060891,1712736000874,1486.14046783,0.00021001,2]
[322060892,1712736001327,1931.15529922,0.00021001,2]
[322060893,1712736001904,277.12178816,0.00021001,2]
[322060894,1712736001995,300.0,0.00021001,2]
[322060895,1712736002303,154.9690062,0.00021001,2]
[322060896,1712736011053,282.81584181,0.00021001,2]
[322060897,1712736020195,3736.78008316,0.00021001,2]
[322060898,1712736029168,364.74168,0.00021001,2]
[322060899,1712736185334,240.74685142,0.00021001,2]
[322060900,1712736208423,154.95351395,0.00021001,2]
[322060901,1712736213373,524.8635464,0.00021001,2]
[322060902,1712736222430,1866.41705732,0.00021001,2]
[322060905,1712736533773,174.856418,0.00020533,2]
[322060917,1712736553102,-302.108716,0.000252,11]
[322060918,1712736600115,413.78051766,0.00018901,2]
[322060930,1712736632090,887.0189653,0.00021001,2]
[322060978,1712736632589,-5182.41790464,0.00021002,2]
[322060985,1712736632647,-20618.25831647,0.00021002,2]
[322060988,1712736632661,-7985.61458804,0.00021002,2]
[322061191,1712736638668,-1910.40822086,0.00021002,2]
[322061193,1712736638680,-230182.23206628,0.00021002,2]
[322061195,1712736638694,-34957.71804896,0.00021002,2]
[322061198,1712736638705,-7919.79093286,0.00021002,2]
[322061209,1712736638752,-29369.31187566,0.00021002,2]
[322061212,1712736638763,-1949.15178993,0.00021002,2]
[322061216,1712736638774,-13487.05427523,0.00021002,2]
[322061219,1712736638785,-443.30537872,0.00021002,2]